fUSD/lending_fUSD_20250115
["ID","MTS","AMOUNT","RATE_DAILY","PERIOD"]
[349136069,1736983873021,-242.0,0.00043499,18]
[349136070,1736983873031,-500.0,0.00043499,18]
[349136071,1736983873041,-420.22690269,0.00043499,18]
[349136072,1736983873051,-618.81,0.00043499,18]
[349136073,1736983873061,-618.81,0.00043499,18]
[349136074,1736983873071,-618.81,0.00043499,18]
[349136075,1736983873081,-618.81,0.00043499,18]
[349136076,1736983873091,-659.96,0.00043499,18]
[349136077,1736983873101,-618.81,0.00043499,18]
[349136078,1736983873111,-659.96,0.00043499,18]
[349136079,1736983873122,-618.81,0.00043499,18]
[349136080,1736983873131,-618.81,0.00043499,18]
[349136081,1736983873141,-659.96,0.00043499,18]
[349136082,1736983873151,-618.81,0.00043499,18]
[349136083,1736983873160,-659.96,0.00043499,18]
[349136084,1736983873170,-618.81,0.00043499,18]
[349136085,1736983873180,-659.96,0.00043499,18]
[349136086,1736983873189,-618.81,0.00043499,18]
[349136087,1736983873199,-659.96,0.00043499,18]
[349136088,1736983873209,-659.96,0.00043499,18]
[349136089,1736983873218,-618.81,0.00043499,18]
[349136090,1736983873228,-659.96,0.00043499,18]
[349136091,1736983873237,-618.81,0.00043499,18]
[349136092,1736983873247,-659.96,0.00043499,18]
[349136093,1736983873258,-618.81,0.00043499,18]
[349136094,1736983873268,-659.96,0.00043499,18]
[349136095,1736983873278,-618.81,0.00043499,18]
[349136096,1736983873287,-659.96,0.00043499,18]
[349136097,1736983873297,-500.0,0.00043499,18]
[349136098,1736983873306,-618.81,0.00043499,18]
[349136099,1736983873320,-659.96,0.00043499,18]
[349136100,1736983873329,-500.0,0.00043499,18]
[349136101,1736983873341,-618.81,0.00043499,18]
[349136102,1736983873351,-659.96,0.00043499,18]
[349136103,1736983873368,-500.0,0.00043499,18]
[349136104,1736983873379,-618.82740586,0.00043499,18]
[349136105,1736983873388,-659.96,0.00043499,18]
[349136106,1736983873398,-500.0,0.00043499,18]
[349136107,1736983873407,-659.96,0.00043499,18]
[349136108,1736983873417,-659.96,0.00043499,18]
[349136109,1736983873427,-659.96,0.00043499,18]
[349136110,1736983873436,-660.08,0.00043499,18]
[349136111,1736983873446,-10000.0,0.000435,60]
[349136112,1736983873456,-190392.11989393,0.000435,31]
[349136113,1736983873469,-59421.10817674,0.000435,31]
[349136114,1736983873481,-14512.08150685,0.000435,31]
[349136115,1736983873493,-4921.03346622,0.000435,31]
[349136116,1736983873505,-7972.08826971,0.000435,31]
[349136117,1736983873516,-17948.97602168,0.000435,31]
[349136118,1736983873528,-1973.17459424,0.000435,31]
[349136119,1736983873539,-497.22370285,0.000435,31]
[349136136,1736985032284,-150.0,0.00034548,10]
[349136137,1736985032293,-200.0,0.00038,120]
[349136138,1736985032302,-364.46,0.000397,2]
[349136139,1736985032312,-200.0,0.0004,120]
[349136140,1736985032321,-2000.0,0.00040705,120]
[349136141,1736985032331,-193.33,0.00040756,2]
[349136142,1736985032341,-2024.83881764,0.00040759,2]
[349136143,1736985032351,-127.19851031,0.00040859,2]
[349136144,1736985032362,-122.80148969,0.00040859,2]
[349136145,1736985032372,-1006.24,0.00040928,120]
[349136146,1736985032382,-452.41,0.00040928,2]
[349136147,1736985032391,-164.53,0.00040963,2]
[349136148,1736985032401,-36.58851031,0.00040999,59]
[349136149,1736985032413,-1979.18548969,0.00040999,59]
[349136150,1736985032422,-196.565,0.00040999,59]
[349136151,1736985032432,-1695.63,0.00041,2]
[349136152,1736985032441,-12000.0,0.00041,10]
[349136153,1736985032451,-200.0,0.00041039,2]
[349136154,1736985032460,-250.0,0.00041086,120]
[349136155,1736985032470,-1088.0,0.00041318,30]
[349136156,1736985032479,-3972.81,0.00041501,2]
[349136157,1736985032488,-22100.99536207,0.00041508,2]
[349136158,1736985032504,-331.79455057,0.00041508,2]
[349136159,1736985032516,-1467.21008736,0.00041508,2]
[349136160,1736985032674,-511.48924031,0.00041619,9]
[349136161,1736985032688,-1000.0,0.00041719,2]
[349136162,1736985032698,-187.81287234,0.00041816,2]
[349136181,1736985038161,-128.64712766,0.00041816,2]
[349136183,1736985038170,-150.0,0.00041899,4]
[349136185,1736985038180,-896.6431,0.000419,2]
[349136187,1736985038189,-1458.8398,0.000419,2]
[349136188,1736985038199,-4720.5078,0.000419,2]
[349136190,1736985038208,-1135.15403259,0.000419,3]
[349136191,1736985038217,-323.9574,0.000419,2]
[349136192,1736985038228,-2033.5827,0.000419,2]
[349136193,1736985038237,-364.46,0.00041964,2]
[349136194,1736985038248,-1135.15403253,0.00041969,3]
[349136195,1736985038258,-300.0,0.00042,15]
[349136196,1736985038267,-200.0,0.00042,120]
[349136197,1736985038276,-10342.26047157,0.00042,2]
[349136198,1736985038288,-4316.2234201,0.00042,2]
[349136199,1736985038300,-506.95799157,0.00042,2]
[349136200,1736985038316,-7490.36837502,0.00042,2]
[349136201,1736985038328,-79499.999,0.00042,2]
[349136202,1736985038340,-52369.7198766,0.00042,2]
[349136203,1736985038352,-3600.0,0.00042,2]
[349136204,1736985038364,-1009.665,0.00042,2]
[349136205,1736985038376,-4087.13897112,0.00042,2]
[349136206,1736985038388,-30117.66689402,0.00042,2]
[349136207,1736985038397,-1135.15403253,0.00042038,3]
[349136208,1736985038407,-250.0,0.00042069,2]
[349136209,1736985038416,-700.0,0.000421,15]
[349136210,1736985038426,-1135.15403253,0.00042107,3]
[349136211,1736985038437,-1500.0,0.00042164,2]
[349136212,1736985038447,-1135.15403253,0.00042176,3]
[349136213,1736985038457,-1000.0,0.000422,15]
[349136214,1736985038467,-1135.15403253,0.00042245,3]
[349136215,1736985038476,-623.94505955,0.00042287,15]
[349136216,1736985038486,-1400.0,0.000423,15]
[349136217,1736985038496,-1135.15403253,0.00042314,3]
[349136218,1736985038507,-1135.15403253,0.00042383,4]
[349136219,1736985038517,-1800.0,0.000424,15]
[349136220,1736985038528,-812.65,0.00042424,120]
[349136221,1736985038539,-623.94505955,0.00042446,15]
[349136222,1736985038550,-1135.15403253,0.00042452,4]
[349136223,1736985038560,-5000.0,0.000425,2]
[349136224,1736985038569,-300.0,0.000425,15]
[349136225,1736985038579,-1135.15403253,0.00042521,4]
[349136226,1736985038589,-1135.15403253,0.0004259,4]
[349136227,1736985038598,-300.0,0.000426,15]
[349136228,1736985038609,-772.39,0.00042603,30]
[349136229,1736985038619,-438.04,0.00042603,30]
[349136230,1736985038629,-623.94505955,0.00042605,15]
[349136231,1736985038638,-1135.15403253,0.00042659,4]
[349136232,1736985038648,-331.93898212,0.00042689,120]
[349136233,1736985038658,-331.93898212,0.00042694,120]
[349136234,1736985038667,-300.0,0.000427,15]
[349136235,1736985038676,-1135.15403253,0.00042728,4]
[349136236,1736985038687,-200.0,0.00042739,120]
[349136237,1736985038696,-385.35590395,0.00042739,120]
[349136239,1736985038706,-392.1927697,0.0004275,120]
[349136241,1736985038716,-200.0,0.0004275,120]
[349136242,1736985038729,-623.94505955,0.00042764,15]
[349136244,1736985038738,-549.9,0.0004278,2]
[349136246,1736985038747,-1135.15403253,0.00042797,4]
[349136248,1736985038755,-300.0,0.000428,15]
[349136249,1736985038766,-331.93898212,0.00042806,120]
[349136250,1736985038775,-331.93898212,0.00042809,120]
[349136252,1736985038784,-1135.15403253,0.00042866,4]
[349136253,1736985038794,-809.0,0.000429,15]
[349136254,1736985038806,-385.35590395,0.000429,120]
[349136255,1736985038816,-310.04,0.00042913,2]
[349136256,1736985038825,-158.66079694,0.00042913,15]
[349136257,1736985038834,-206.34904141,0.00042913,15]
[349136258,1736985038843,-623.94505955,0.00042923,15]
[349136259,1736985038853,-392.1927697,0.00042925,120]
[349136260,1736985038862,-331.93898212,0.00042925,120]
[349136261,1736985038873,-392.1927697,0.0004293,120]
[349136262,1736985038883,-1135.15403253,0.00042934,4]
[349136263,1736985038892,-385.35590395,0.00042944,120]
[349136264,1736985038902,-392.1927697,0.00042954,120]
[349136265,1736985038911,-385.35590395,0.00042962,120]
[349136266,1736985038921,-392.1927697,0.00042977,120]
[349136267,1736985038931,-385.35590395,0.00042985,120]
[349136268,1736985038941,-1029.97464141,0.00042999,120]
[349136269,1736985038950,-23447.18839854,0.00043,120]
[349136270,1736985038962,-1823.02986086,0.00043,120]
[349136271,1736985038973,-1241.83745801,0.00043,120]
[349136272,1736985038983,-676.92799819,0.00043,120]
[349136273,1736985038995,-326.249997,0.00043,120]
[349136274,1736985039007,-79.3162874,0.00043,120]
[349136275,1736985039017,-346.6837026,0.00043,120]
[349136276,1736985039029,-811.3162974,0.00043,120]
[349136277,1736985039039,-1135.15403253,0.00043003,4]
[349136278,1736985039049,-500.0,0.00043013,18]
[349136279,1736985039058,-500.0,0.00043013,18]
[349136280,1736985039067,-396.57995985,0.00043013,18]
[349136281,1736985039078,-184.53326599,0.00043013,18]
[349136282,1736985039088,-517.06402854,0.00043013,18]
[349136283,1736985039098,-500.0,0.00043013,18]
[349136284,1736985039107,-166.64124435,0.00043013,18]
[349136285,1736985039117,-99.41837427,0.00043013,18]
[349136286,1736985039129,-400.58162573,0.00043013,18]
[349136287,1736985039138,-500.0,0.00043013,18]
[349136288,1736985039148,-500.0,0.00043013,18]
[349136289,1736985039158,-500.0,0.00043013,18]
[349136290,1736985039168,-126.07715292,0.00043013,18]
[349136291,1736985039180,-375.27828906,0.00043013,18]
[349136292,1736985039189,-7.44052517,0.00043013,18]
[349136293,1736985039200,-273.4904278,0.00043013,18]
[349136294,1736985039209,-500.0,0.00043013,18]
[349136295,1736985039218,-500.0,0.00043013,18]
[349136296,1736985039229,-500.0,0.00043013,18]
[349136297,1736985039238,-500.0,0.00043013,18]
[349136298,1736985039247,-500.0,0.00043013,18]
[349136299,1736985039257,-500.0,0.00043013,18]
[349136300,1736985039274,-500.0,0.00043013,18]
[349136301,1736985039283,-500.0,0.00043013,18]
[349136302,1736985039293,-500.0,0.00043013,18]
[349136303,1736985039304,-500.0,0.00043013,18]
[349136304,1736985039314,-180.16,0.00043013,18]
[349136305,1736985039323,-500.0,0.00043013,18]
[349136306,1736985039333,-500.0,0.00043013,18]
[349136307,1736985039343,-500.0,0.00043013,18]
[349136308,1736985039353,-500.0,0.00043013,18]
[349136309,1736985039363,-500.0,0.00043013,18]
[349136310,1736985039373,-500.0,0.00043013,18]
[349136311,1736985039382,-500.0,0.00043013,18]
[349136312,1736985039392,-500.0,0.00043013,18]
[349136313,1736985039403,-500.0,0.00043013,18]
[349136314,1736985039412,-500.0,0.00043013,18]
[349136315,1736985039422,-500.0,0.00043013,18]
[349136316,1736985039441,-500.0,0.00043013,18]
[349136317,1736985039454,-500.0,0.00043013,18]
[349136318,1736985039463,-322.3286197,0.00043013,18]
[349136319,1736985039473,-500.0,0.00043013,18]
[349136320,1736985039483,-500.0,0.00043013,18]
[349136321,1736985039493,-500.0,0.00043013,18]
[349136322,1736985039503,-500.0,0.00043013,18]
[349136323,1736985039513,-500.0,0.00043013,18]
[349136324,1736985039523,-500.0,0.00043013,18]
[349136325,1736985039532,-500.0,0.00043013,18]
[349136326,1736985039542,-611.54,0.00043013,18]
[349136327,1736985039553,-500.0,0.00043013,18]
[349136328,1736985039562,-500.0,0.00043013,18]
[349136329,1736985039572,-500.0,0.00043013,18]
[349136330,1736985039582,-500.0,0.00043013,18]
[349136331,1736985039592,-500.0,0.00043013,18]
[349136332,1736985039601,-500.0,0.00043013,18]
[349136333,1736985039611,-500.0,0.00043013,18]
[349136334,1736985039621,-500.0,0.00043013,18]
[349136335,1736985039631,-500.0,0.00043013,18]
[349136336,1736985039641,-500.0,0.00043013,18]
[349136337,1736985039653,-500.0,0.00043013,18]
[349136338,1736985039663,-500.0,0.00043013,18]
[349136339,1736985039672,-300.4730777,0.00043013,18]
[349136340,1736985039681,-500.0,0.00043013,18]
[349136341,1736985039690,-500.0,0.00043013,18]
[349136342,1736985039700,-500.0,0.00043013,18]
[349136343,1736985039710,-500.0,0.00043013,18]
[349136344,1736985039721,-500.0,0.00043013,18]
[349136345,1736985039731,-500.0,0.00043013,18]
[349136346,1736985039740,-500.0,0.00043013,18]
[349136347,1736985039750,-500.0,0.00043013,18]
[349136348,1736985039762,-500.0,0.00043013,18]
[349136349,1736985039773,-500.0,0.00043013,18]
[349136350,1736985039783,-500.0,0.00043013,18]
[349136351,1736985039793,-500.0,0.00043013,18]
[349136352,1736985039805,-500.0,0.00043013,18]
[349136353,1736985039816,-500.0,0.00043013,18]
[349136354,1736985039827,-338.87,0.00043013,18]
[349136355,1736985039837,-259.25,0.00043013,18]
[349136356,1736985039846,-500.0,0.00043013,18]
[349136357,1736985039856,-500.0,0.00043013,18]
[349136358,1736985039867,-275.38,0.00043013,18]
[349136359,1736985039876,-500.0,0.00043013,18]
[349136360,1736985039886,-500.0,0.00043013,18]
[349136361,1736985039895,-500.0,0.00043013,18]
[349136362,1736985039905,-500.0,0.00043013,18]
[349136363,1736985039915,-466.45466118,0.00043013,18]
[349136364,1736985039924,-305.89294284,0.00043013,18]
[349136365,1736985039933,-627.17385024,0.00043013,18]
[349136366,1736985039943,-500.0,0.00043013,18]
[349136367,1736985039952,-500.0,0.00043013,18]
[349136368,1736985039960,-500.0,0.00043013,18]
[349136369,1736985039969,-500.0,0.00043013,18]
[349136370,1736985039977,-500.0,0.00043013,18]
[349136371,1736985039985,-500.0,0.00043013,18]
[349136372,1736985039994,-500.57345677,0.00043013,18]
[349136373,1736985040002,-500.0,0.00043013,18]
[349136374,1736985040011,-500.0,0.00043013,18]
[349136375,1736985040019,-500.0,0.00043013,18]
[349136376,1736985040029,-500.0,0.00043013,18]
[349136378,1736985040040,-500.0,0.00043013,18]
[349136379,1736985040050,-297.5,0.00043013,18]
[349136380,1736985040060,-500.0,0.00043013,18]
[349136381,1736985040069,-500.0,0.00043013,18]
[349136383,1736985040079,-500.0,0.00043013,18]
[349136385,1736985040089,-500.0,0.00043013,18]
[349136386,1736985040098,-370.22,0.00043013,18]
[349136387,1736985040108,-500.0,0.00043013,18]
[349136388,1736985040119,-500.0,0.00043013,18]
[349136389,1736985040129,-500.0,0.00043013,18]
[349136390,1736985040139,-500.0,0.00043013,18]
[349136391,1736985040150,-500.0,0.00043013,18]
[349136392,1736985040160,-403.37,0.00043013,18]
[349136393,1736985040169,-500.0,0.00043013,7]
[349136394,1736985040179,-500.0,0.00043013,18]
[349136395,1736985040188,-500.0,0.00043013,18]
[349136396,1736985040198,-500.0,0.00043013,18]
[349136397,1736985040208,-176.79,0.00043013,18]
[349136398,1736985040219,-500.0,0.00043013,18]
[349136401,1736985040231,-500.0,0.00043013,18]
[349136402,1736985040240,-500.0,0.00043013,18]
[349136403,1736985040250,-500.0,0.00043013,18]
[349136404,1736985040259,-500.0,0.00043013,18]
[349136405,1736985040269,-500.0,0.00043013,18]
[349136406,1736985040279,-512.92,0.00043013,18]
[349136407,1736985040288,-500.0,0.00043013,18]
[349136408,1736985040298,-404.61,0.00043013,18]
[349136409,1736985040308,-500.0,0.00043013,18]
[349136410,1736985040318,-500.0,0.00043013,18]
[349136411,1736985040328,-634.57556757,0.00043013,18]
[349136412,1736985040337,-500.0,0.00043013,18]
[349136413,1736985040346,-500.0,0.00043013,18]
[349136414,1736985040356,-500.0,0.00043013,18]
[349136415,1736985040366,-500.0,0.00043013,18]
[349136416,1736985040375,-500.0,0.00043013,18]
[349136417,1736985040384,-500.0,0.00043013,18]
[349136418,1736985040393,-500.0,0.00043013,18]
[349136419,1736985040403,-500.0,0.00043013,18]
[349136420,1736985040413,-500.0,0.00043013,18]
[349136421,1736985040422,-500.0,0.00043013,18]
[349136422,1736985040431,-500.0,0.00043013,18]
[349136423,1736985040440,-369.82,0.00043013,18]
[349136424,1736985040450,-500.0,0.00043013,18]
[349136425,1736985040459,-500.0,0.00043013,18]
[349136426,1736985040468,-500.0,0.00043013,18]
[349136427,1736985040478,-500.0,0.00043013,18]
[349136428,1736985040486,-500.0,0.00043013,18]
[349136429,1736985040498,-500.0,0.00043013,18]
[349136430,1736985040507,-500.0,0.00043013,18]
[349136431,1736985040516,-500.0,0.00043013,18]
[349136432,1736985040525,-500.0,0.00043013,18]
[349136433,1736985040535,-207.87,0.00043013,18]
[349136434,1736985040544,-500.0,0.00043013,18]
[349136435,1736985040554,-580.83,0.00043013,18]
[349136436,1736985040563,-500.0,0.00043013,18]
[349136437,1736985040572,-206.52464975,0.00043013,18]
[349136438,1736985040581,-500.0,0.00043013,18]
[349136439,1736985040590,-500.0,0.00043013,18]
[349136440,1736985040600,-500.0,0.00043013,18]
[349136441,1736985040610,-500.0,0.00043013,18]
[349136442,1736985040619,-539.92,0.00043013,18]
[349136443,1736985040628,-225.05,0.00043013,18]
[349136444,1736985040637,-471.28738245,0.00043013,18]
[349136445,1736985040691,-28.71261755,0.00043013,18]
[349136446,1736985040701,-500.0,0.00043013,18]
[349136447,1736985040710,-500.0,0.00043013,18]
[349136448,1736985040721,-374.47112918,0.00043013,18]
[349136449,1736985040732,-500.0,0.00043013,18]
[349136450,1736985040742,-97.60898844,0.00043013,18]
[349136451,1736985040754,-402.39101156,0.00043013,18]
[349136452,1736985040763,-500.0,0.00043013,18]
[349136453,1736985040774,-500.0,0.00043013,18]
[349136454,1736985040783,-146.10398845,0.00043013,18]
[349136455,1736985040795,-353.89601155,0.00043013,18]
[349136456,1736985040808,-249.15595852,0.00043013,18]
[349136458,1736985040822,-250.84404148,0.00043013,18]
[349136460,1736985040831,-174.36702083,0.00043013,18]
[349136462,1736985040842,-303.87516326,0.00043013,18]
[349136464,1736985040851,-500.0,0.00043013,18]
[349136466,1736985040861,-211.05,0.00043013,18]
[349136468,1736985040870,-413.58324062,0.00043013,18]
[349136470,1736985040881,-86.41675938,0.00043013,18]
[349136472,1736985040891,-500.0,0.00043013,18]
[349136474,1736985040900,-522.5,0.00043013,18]
[349136476,1736985040910,-500.0,0.00043013,18]
[349136478,1736985040919,-500.0,0.00043013,18]
[349136480,1736985040930,-622.33,0.00043013,18]
[349136482,1736985040939,-505.02,0.00043013,2]
[349136484,1736985040947,-500.0,0.00043013,18]
[349136486,1736985040956,-500.0,0.00043013,18]
[349136488,1736985040966,-500.0,0.00043013,18]
[349136490,1736985040975,-500.0,0.00043013,18]
[349136492,1736985040984,-500.0,0.00043013,18]
[349136494,1736985040994,-500.0,0.00043013,18]
[349136496,1736985041003,-500.0,0.00043013,18]
[349136498,1736985041013,-500.0,0.00043013,18]
[349136500,1736985041022,-502.76734816,0.00043013,18]
[349136502,1736985041031,-500.0,0.00043013,18]
[349136504,1736985041041,-500.0,0.00043013,18]
[349136506,1736985041051,-489.91980348,0.00043013,18]
[349136508,1736985041060,-500.0,0.00043013,18]
[349136510,1736985041069,-500.0,0.00043013,18]
[349136512,1736985041078,-500.0,0.00043013,18]
[349136514,1736985041088,-500.0,0.00043013,18]
[349136516,1736985041097,-500.0,0.00043013,18]
[349136518,1736985041106,-500.0,0.00043013,18]
[349136520,1736985041115,-500.0,0.00043013,18]
[349136522,1736985041124,-500.0,0.00043013,18]
[349136524,1736985041133,-500.0,0.00043013,18]
[349136526,1736985041143,-500.0,0.00043013,18]
[349136528,1736985041151,-500.0,0.00043013,18]
[349136530,1736985041160,-500.0,0.00043013,18]
[349136532,1736985041169,-500.0,0.00043013,18]
[349136534,1736985041179,-500.0,0.00043013,18]
[349136536,1736985041188,-500.0,0.00043013,18]
[349136538,1736985041196,-500.0,0.00043013,18]
[349136540,1736985041205,-500.0,0.00043013,18]
[349136542,1736985041214,-500.0,0.00043013,18]
[349136544,1736985041225,-500.0,0.00043013,18]
[349136545,1736985041234,-500.0,0.00043013,18]
[349136547,1736985041243,-500.0,0.00043013,18]
[349136549,1736985041252,-500.0,0.00043013,18]
[349136551,1736985041261,-500.0,0.00043013,18]
[349136553,1736985041271,-502.37719364,0.00043013,18]
[349136554,1736985041280,-500.0,0.00043013,18]
[349136555,1736985041290,-198.36,0.00043013,18]
[349136556,1736985041302,-500.0,0.00043013,18]
[349136557,1736985041312,-500.0,0.00043013,18]
[349136558,1736985041321,-500.0,0.00043013,18]
[349136559,1736985041331,-500.0,0.00043013,18]
[349136560,1736985041340,-500.0,0.00043013,18]
[349136561,1736985041350,-500.0,0.00043013,18]
[349136562,1736985041359,-500.0,0.00043013,18]
[349136563,1736985041368,-500.0,0.00043013,18]
[349136564,1736985041378,-576.94889534,0.00043013,18]
[349136565,1736985041392,-8.78110466,0.00043013,18]
[349136566,1736985041401,-500.0,0.00043013,18]
[349136567,1736985041411,-264.47353235,0.00043013,18]
[349136568,1736985041420,-500.0,0.00043013,18]
[349136569,1736985041430,-500.0,0.00043013,18]
[349136570,1736985041439,-500.0,0.00043013,18]
[349136571,1736985041449,-500.0,0.00043013,18]
[349136572,1736985041459,-500.0,0.00043013,18]
[349136573,1736985041468,-439.33112535,0.00043013,18]
[349136574,1736985041480,-60.66887465,0.00043013,18]
[349136575,1736985041490,-252.13485466,0.00043013,18]
[349136576,1736985041499,-500.0,0.00043013,18]
[349136577,1736985041508,-500.0,0.00043013,18]
[349136578,1736985041518,-500.0,0.00043013,18]
[349136579,1736985041527,-500.0,0.00043013,18]
[349136580,1736985041536,-500.0,0.00043013,18]
[349136581,1736985041546,-500.0,0.00043013,18]
[349136582,1736985041557,-500.0,0.00043013,18]
[349136583,1736985041567,-500.0,0.00043013,18]
[349136584,1736985041576,-500.0,0.00043013,18]
[349136585,1736985041586,-500.0,0.00043013,18]
[349136586,1736985041595,-500.0,0.00043013,18]
[349136587,1736985041604,-500.0,0.00043013,18]
[349136588,1736985041614,-500.0,0.00043013,18]
[349136589,1736985041623,-500.0,0.00043013,18]
[349136590,1736985041632,-500.0,0.00043013,18]
[349136591,1736985041641,-500.0,0.00043013,18]
[349136592,1736985041651,-366.52,0.00043013,18]
[349136593,1736985041659,-500.0,0.00043013,18]
[349136594,1736985041670,-500.0,0.00043013,18]
[349136595,1736985041679,-500.0,0.00043013,18]
[349136596,1736985041688,-500.0,0.00043013,18]
[349136597,1736985041698,-500.0,0.00043013,18]
[349136598,1736985041707,-193.5,0.00043013,18]
[349136599,1736985041720,-500.0,0.00043013,18]
[349136600,1736985041730,-500.0,0.00043013,18]
[349136601,1736985041739,-500.0,0.00043013,18]
[349136602,1736985041750,-500.0,0.00043013,18]
[349136603,1736985041761,-500.0,0.00043013,18]
[349136604,1736985041771,-435.11,0.00043013,18]
[349136605,1736985041780,-500.0,0.00043013,18]
[349136606,1736985041793,-500.0,0.00043013,18]
[349136607,1736985041804,-1000.0,0.00043013,120]
[349136608,1736985041813,-500.0,0.00043013,18]
[349136609,1736985041823,-302.44632373,0.00043013,18]
[349136610,1736985041832,-631.06,0.00043013,18]
[349136611,1736985041842,-500.0,0.00043013,18]
[349136612,1736985041851,-500.0,0.00043013,18]
[349136613,1736985041860,-500.0,0.00043013,18]
[349136614,1736985041870,-500.0,0.00043013,18]
[349136615,1736985041881,-500.0,0.00043013,18]
[349136616,1736985041891,-500.0,0.00043013,18]
[349136617,1736985041900,-500.0,0.00043013,18]
[349136618,1736985041909,-500.0,0.00043013,18]
[349136619,1736985042072,-500.0,0.00043013,18]
[349136620,1736985042084,-500.0,0.00043013,18]
[349136621,1736985042094,-500.0,0.00043013,18]
[349136622,1736985042103,-382.0,0.00043013,18]
[349136623,1736985042112,-500.0,0.00043013,18]
[349136624,1736985042122,-500.0,0.00043013,18]
[349136625,1736985042132,-500.0,0.00043013,18]
[349136626,1736985042141,-500.0,0.00043013,18]
[349136627,1736985042151,-500.0,0.00043013,18]
[349136628,1736985042161,-500.0,0.00043013,18]
[349136629,1736985042170,-500.0,0.00043013,18]
[349136630,1736985042179,-500.0,0.00043013,18]
[349136631,1736985042188,-500.0,0.00043013,18]
[349136632,1736985042197,-359.97043443,0.00043013,18]
[349136633,1736985042207,-500.0,0.00043013,18]
[349136634,1736985042215,-500.0,0.00043013,18]
[349136635,1736985042226,-433.15052888,0.00043013,18]
[349136636,1736985042237,-237.31,0.00043013,18]
[349136637,1736985042246,-500.0,0.00043013,18]
[349136638,1736985042255,-474.8763279,0.00043013,18]
[349136639,1736985042265,-500.0,0.00043013,18]
[349136640,1736985042275,-500.0,0.00043013,18]
[349136641,1736985042285,-500.0,0.00043013,18]
[349136642,1736985042294,-500.0,0.00043013,18]
[349136643,1736985042305,-500.0,0.00043013,18]
[349136644,1736985042315,-500.0,0.00043013,18]
[349136645,1736985042324,-500.0,0.00043013,18]
[349136646,1736985042334,-500.0,0.00043013,18]
[349136647,1736985042343,-500.0,0.00043013,18]
[349136648,1736985042353,-500.0,0.00043013,18]
[349136649,1736985042362,-500.0,0.00043013,18]
[349136650,1736985042371,-500.0,0.00043013,18]
[349136651,1736985042380,-501.67156521,0.00043013,18]
[349136652,1736985042390,-500.0,0.00043013,18]
[349136653,1736985042399,-500.0,0.00043013,18]
[349136654,1736985042409,-500.0,0.00043013,18]
[349136655,1736985042418,-500.0,0.00043013,18]
[349136656,1736985042428,-500.0,0.00043013,18]
[349136657,1736985042437,-500.0,0.00043013,18]
[349136658,1736985042446,-500.0,0.00043013,18]
[349136659,1736985042455,-500.0,0.00043013,18]
[349136660,1736985042464,-500.0,0.00043013,18]
[349136661,1736985042474,-217.95796902,0.00043013,18]
[349136662,1736985042483,-500.0,0.00043013,18]
[349136663,1736985042492,-500.0,0.00043013,18]
[349136664,1736985042502,-500.0,0.00043013,18]
[349136665,1736985042510,-500.0,0.00043013,18]